lending/lending_fUSD_20241115
["ID","MTS","AMOUNT","RATE_DAILY","PERIOD"]
[342275675,1731689519969,-1353.18,9.996e-05,2]
[342275676,1731689519979,-327.56363737,9.997e-05,2]
[342275677,1731689519989,-1363.9,9.997e-05,2]
[342275678,1731689519999,-1353.43,9.997e-05,2]
[342275679,1731689520008,-500.0,9.997e-05,2]
[342275680,1731689520017,-1363.9,9.997e-05,2]
[342275681,1731689520026,-1353.43,9.997e-05,2]
[342275682,1731689520036,-500.0,9.997e-05,2]
[342275683,1731689520046,-1363.99,9.997e-05,2]
[342275684,1731689520055,-631.70636263,9.997e-05,2]
[342275685,1731689520067,-721.72363737,9.997e-05,2]
[342275686,1731689520076,-500.0,9.997e-05,2]
[342275687,1731689520085,-1353.43,9.997e-05,2]
[342275688,1731689520095,-406.9210855,9.997e-05,2]
[342275689,1731689520106,-93.0789145,9.997e-05,2]
[342275690,1731689520116,-1353.43,9.997e-05,2]
[342275691,1731689520126,-500.0,9.997e-05,2]
[342275692,1731689520135,-500.0,9.997e-05,2]
[342275693,1731689520145,-1353.43,9.997e-05,2]
[342275694,1731689520155,-500.0,9.997e-05,2]
[342275695,1731689520164,-500.0,9.997e-05,2]
[342275696,1731689520174,-291.34777728,9.997e-05,2]
[342275697,1731689520240,-500.0,9.996e-05,2]
[342275698,1731689520250,-321.56609532,9.997e-05,2]
[342275699,1731689520260,-500.0,9.997e-05,2]
[342275700,1731689520269,-500.0,9.997e-05,2]
[342275701,1731689520279,-500.0,9.997e-05,2]
[342275702,1731689520289,-500.0,9.997e-05,2]
[342275703,1731689520298,-500.0,9.997e-05,2]
[342275704,1731689520307,-228.48931312,9.998e-05,2]
[342275705,1731689520317,-500.0,9.998e-05,2]
[342275706,1731689520327,-500.0,9.998e-05,2]
[342275707,1731689520336,-5318.83,9.998e-05,2]
[342275708,1731689520346,-500.0,9.998e-05,2]
[342275709,1731689520355,-869.44659593,9.998e-05,2]
[342275710,1731689520367,-661.0,9.998e-05,2]
[342275711,1731689521860,-880.09,9.996e-05,2]
[342275712,1731689521870,-1055.56,9.996e-05,2]
[342275713,1731689521881,-7238.35,9.996e-05,2]
[342275714,1731689521891,-1353.18,9.996e-05,2]
[342275715,1731689521901,-880.09,9.996e-05,2]
[342275716,1731689521911,-1055.56,9.996e-05,2]
[342275717,1731689521921,-7238.35,9.996e-05,2]
[342275718,1731689521932,-880.09,9.996e-05,2]
[342275719,1731689521949,-1055.56,9.996e-05,2]
[342275720,1731689521960,-1353.18,9.996e-05,2]
[342275721,1731689521970,-5023.60110406,9.996e-05,2]
[342275722,1731689521993,-1942.40668479,9.996e-05,2]
[342275723,1731689522005,-272.34221115,9.996e-05,2]
[342275724,1731689522016,-880.09,9.996e-05,2]
[342275725,1731689522026,-1055.56,9.996e-05,2]
[342275726,1731689522036,-1353.18,9.996e-05,2]
[342275727,1731689522047,-2014.38509655,9.996e-05,2]
[342275728,1731689522075,-564.68,9.897e-05,2]
[342275729,1731689522085,-5223.96490345,9.996e-05,2]
[342275730,1731689522095,-880.09,9.996e-05,2]
[342275731,1731689522105,-1055.56,9.996e-05,2]
[342275732,1731689522114,-1593.60509655,9.996e-05,2]
[342275733,1731689522126,-2690.56462076,9.996e-05,2]
[342275734,1731689522163,-2954.18028269,9.996e-05,2]
[342275735,1731689522173,-1353.18,9.996e-05,2]
[342275736,1731689522187,-880.09,9.996e-05,2]
[342275737,1731689522198,-1055.56,9.996e-05,2]
[342275738,1731689522207,-1353.18,9.996e-05,2]
[342275739,1731689522217,-7238.35,9.996e-05,2]
[342275740,1731689522227,-880.21582828,9.996e-05,2]
[342275741,1731689522237,-1055.56,9.996e-05,2]
[342275742,1731689522247,-212.98237103,9.996e-05,2]
[342275743,1731689522260,-1140.19762897,9.996e-05,2]
[342275744,1731689522270,-7238.35,9.996e-05,2]
[342275745,1731689522280,-1055.56,9.996e-05,2]
[342275746,1731689522290,-619.76302616,9.996e-05,2]
[342275747,1731689522302,-733.41697384,9.996e-05,2]
[342275748,1731689522312,-7238.35,9.996e-05,2]
[342275749,1731689522322,-1055.7499699,9.996e-05,2]
[342275750,1731689522332,-7238.35,9.996e-05,2]
[342275751,1731689522342,-7238.35,9.996e-05,2]
[342275752,1731689522352,-7238.35,9.996e-05,2]
[342275753,1731689522362,-500.0,9.997e-05,2]
[342275754,1731689522371,-500.0,9.997e-05,2]
[342275755,1731689522381,-500.0,9.997e-05,2]
[342275756,1731689522391,-210.69353795,9.997e-05,2]
[342275757,1731689522400,-425.68,9.997e-05,2]
[342275758,1731689522410,-1353.18,9.997e-05,2]
[342275759,1731689522420,-802.77728826,9.997e-05,2]
[342275760,1731689522441,-4699.42611812,9.997e-05,2]
[342275761,1731689522454,-2198.10659362,9.997e-05,2]
[342275762,1731689522467,-1353.18,9.997e-05,2]
[342275763,1731689522478,-7700.31,9.997e-05,2]
[342275764,1731689522488,-1353.18,9.997e-05,2]
[342275765,1731689522498,-3788.38340407,9.998e-05,2]
[342275766,1731689522510,-358.01931927,9.998e-05,2]
[342275767,1731689522520,-1710.53,9.998e-05,2]
[342275768,1731689522531,-5318.83,9.998e-05,2]
[342275769,1731689522541,-1710.53,9.998e-05,2]
[342275770,1731689522552,-5318.83,9.998e-05,2]
[342275771,1731689522562,-1710.53,9.998e-05,2]
[342275772,1731689522572,-5318.83,9.998e-05,2]
[342275773,1731689522582,-1710.53,9.998e-05,2]
[342275774,1731689522592,-524.02454824,9.998e-05,2]
[342275775,1731689522693,-564.68,9.898e-05,2]
[342275776,1731689522703,-3834.6799159,9.998e-05,2]
[342275777,1731689606907,2000.0,0.00024708,120]
[342275778,1731689619243,157.502,0.0002425,60]
[342275779,1731689619804,157.454,0.0002475,60]
[342275782,1731690206611,2000.0,0.00024871,120]
[342275783,1731690216457,200.0,0.00024966,120]
[342275784,1731690227375,1803.86,8.219e-05,2]
[342275785,1731690298589,157.464,0.00025,60]
[342275786,1731690312024,9854.78956666,0.00025,60]
[342275788,1731690433912,1418270.4554139,0.00025,60]
[342275793,1731690546131,-250.0,8.775e-05,2]
[342275794,1731690546152,-7278.5952884,8.775e-05,2]
[342275795,1731690546173,-5001.92300755,8.775e-05,2]
[342275796,1731690546195,-23900.0,8.775e-05,2]
[342275797,1731690546226,-250.0,8.795e-05,2]
[342275798,1731690546247,-2781.07,8.817e-05,2]
[342275799,1731690546267,-150.0,8.824e-05,2]
[342275800,1731690546288,-964.16510405,8.825e-05,2]
[342275801,1731690546334,-535.83489595,8.825e-05,2]
[342275802,1731690546354,-500.0,8.825e-05,2]
[342275803,1731690546376,-500.0,8.825e-05,2]
[342275804,1731690546396,-500.0,8.825e-05,2]
[342275805,1731690546416,-500.0,8.825e-05,2]
[342275806,1731690546436,-500.0,8.825e-05,2]
[342275807,1731690546456,-500.0,8.825e-05,2]
[342275808,1731690546481,-500.0,8.825e-05,2]
[342275809,1731690546501,-450.86527532,8.825e-05,2]
[342275810,1731690555031,1000.0,8.934e-05,2]
[342275813,1731690583916,1500.0,8.934e-05,2]
[342275816,1731690585580,704.05,8.775e-05,2]
[342275820,1731690632689,-348.64,9.018e-05,2]
[342275821,1731690632698,-200.0,9.018e-05,2]
[342275822,1731690632707,-3469.31869,9.133e-05,6]
[342275823,1731690632719,-18595.71587006,9.133e-05,6]
[342275824,1731690632742,-3869.44697151,9.133e-05,6]
[342275825,1731690632756,-3296.02384028,9.133e-05,6]
[342275826,1731690632767,-18683.77254642,9.133e-05,6]
[342275831,1731690638448,-12564.67481592,9.133e-05,6]
[342275832,1731690638460,-4973.97643515,9.133e-05,6]
[342275833,1731690638472,-3300.36436133,9.133e-05,6]
[342275834,1731690638484,-316.73,9.133e-05,6]
[342275836,1731690638564,-748.51535613,9.133e-05,6]
[342275838,1731690638577,-335.7487746,9.133e-05,6]
[342275840,1731690638605,-57783.5924998,9.133e-05,6]
[342275841,1731690638641,-790.46231479,9.133e-05,6]
[342275842,1731690638908,-52961.31570521,9.133e-05,6]
[342275843,1731690638922,-924.91614,9.133e-05,6]
[342275846,1731690640062,-647.355264,9.133e-05,6]
[342275847,1731690640119,-50000.0,9.133e-05,6]
[342275848,1731690640232,-5336.05143262,9.133e-05,6]
[342275849,1731690640244,-3050.98980002,9.133e-05,6]
[342275850,1731690640255,-28175.6249991,9.133e-05,6]
[342275851,1731690640300,-530.05,9.133e-05,6]
[342275852,1731690640311,-1471.06236412,9.133e-05,6]
[342275857,1731690643166,-534.362006,9.133e-05,6]
[342275858,1731690643179,-345.1890866,9.133e-05,6]
[342275859,1731690643282,-4805.08007,9.133e-05,6]
[342275860,1731690643301,-20416.20222585,9.133e-05,6]
[342275861,1731690643335,-17833.60897295,9.133e-05,6]
[342275862,1731690643450,-4156.70654811,9.133e-05,6]
[342275867,1731690646070,-220398.47051552,9.133e-05,6]
[342275868,1731690646082,-2207.23065,9.133e-05,6]
[342275869,1731690646137,-50265.330675,9.133e-05,6]
[342275870,1731690646365,-66132.0,9.133e-05,6]
[342275871,1731690646377,-78542.48479795,9.133e-05,6]
[342275872,1731690646388,-52229.41464901,9.133e-05,6]
[342275873,1731690646400,-14065.7505,9.133e-05,6]
[342275874,1731690646412,-78010.88422,9.133e-05,6]
[342275875,1731690646427,-25930.40695352,9.133e-05,6]
[342275876,1731690646439,-759.79154388,9.133e-05,6]
[342275877,1731690651062,167.9515,8.675e-05,2]
[342275878,1731690732605,521.08,8.938e-05,2]
[342275880,1731690976854,157.541,0.00025,60]
[342275881,1731691069463,1713.66,8.219e-05,2]
[342275882,1731691509222,50706.13133801,7.999e-05,2]
[342275883,1731691627083,-1425.31405436,8.721e-05,2]
[342275884,1731691651114,-74.68594564,8.721e-05,2]
[342275885,1731691651137,-1000.0,8.756e-05,2]
[342275886,1731691651161,-352.02,8.756e-05,2]
[342275887,1731691651182,-250.0,8.761e-05,2]
[342275888,1731691651204,-133.7482509,8.864e-05,2]
[342275890,1731691745125,-250.0,8.694e-05,2]
[342275891,1731691745149,-383.13,8.706e-05,2]
[342275892,1731691745173,-85.05167276,8.818e-05,2]
[342275893,1731691745203,-214.94832724,8.818e-05,2]
[342275894,1731691745226,-23900.0,8.865e-05,2]
[342275895,1731691745247,-167.43,8.873e-05,2]
[342275896,1731691745270,-763.15,8.921e-05,2]
[342275897,1731691745292,-150.0,8.978e-05,2]
[342275898,1731691745314,-342.8053327,8.978e-05,2]
[342275899,1731691745344,-19.5146673,8.978e-05,2]
[342275900,1731691745365,-165.76,8.994e-05,2]
[342275901,1731691746743,6959.6204467,8.65e-05,2]
[342275902,1731691748155,-12467.4829913,8.65e-05,2]
[342275907,1731691772895,6150.59915388,8.759e-05,2]
[342275935,1731691832801,-1265.0,8.753e-05,2]
[342275936,1731691832811,-300.0,8.758e-05,2]
[342275937,1731691832820,-1124.77712328,8.759e-05,2]
[342275938,1731691832836,-787.80789843,8.759e-05,2]
[342275939,1731691832855,-5046.64983752,8.759e-05,2]
[342275940,1731691832875,-8895.7393193,8.759e-05,2]
[342275941,1731691832887,-1894.42666759,8.759e-05,2]
[342275942,1731691832896,-496.64339,9.03e-05,2]
[342275943,1731691832906,-71303.01840455,9.133e-05,6]
[342275944,1731691832916,-41466.33,9.134e-05,6]
[342275945,1731691832926,-12273.53,9.134e-05,6]
[342275946,1731691832935,-16086.05153785,9.134e-05,6]
[342275947,1731691832947,-51640.88846215,9.134e-05,6]
[342275948,1731691832955,-30709.11153774,9.134e-05,6]
[342275949,1731691832976,-1513.33846226,9.134e-05,6]
[342275950,1731691832986,-2803.01306913,9.134e-05,6]
[342275951,1731691833037,-1600.11721359,9.134e-05,6]
[342275952,1731691833048,-6577.05458165,9.134e-05,6]
[342275953,1731691833060,-1106.02,9.134e-05,6]
[342275954,1731691838384,-1571.81022979,9.134e-05,6]
[342275955,1731691838396,-9548.40622298,9.134e-05,6]
[342275956,1731691838661,-7380.13868286,9.134e-05,6]
[342275957,1731691838670,-8480.75512102,9.134e-05,6]
[342275958,1731691838682,-2970.43487898,9.134e-05,6]
[342275959,1731691838691,-26954.51,9.134e-05,6]
[342275960,1731691838701,-25034.27,9.134e-05,6]
[342275961,1731691838710,-54970.77,9.134e-05,6]
[342275962,1731691838720,-5760.32,9.134e-05,6]
[342275963,1731691838729,-31445.76,9.134e-05,6]
[342275964,1731691838739,-165.05,9.195e-05,2]
[342275965,1731691838748,-166.38,9.288e-05,2]
[342275966,1731691838758,-178.17,9.302e-05,2]
[342275967,1731691838768,-1670.0,9.49e-05,2]
[342275968,1731691838779,-200.0,9.6e-05,2]
[342275969,1731691838789,-420.0,9.634e-05,2]
[342275970,1731691838798,-2595.6058,9.679e-05,2]
[342275971,1731691838807,-415.8404,9.679e-05,2]
[342275972,1731691838816,-673.987,9.679e-05,2]
[342275973,1731691838825,-2500.0,9.696e-05,2]
[342275974,1731691838834,-348.1476,9.697e-05,2]
[342275975,1731691838844,-1000.0,9.699e-05,2]
[342275976,1731691838853,-150.0,9.699e-05,2]
[342275977,1731691838863,-54216.1729,9.7e-05,2]
[342275978,1731691838872,-150.0,9.739e-05,2]
[342275979,1731691838881,-150.0,9.747e-05,2]
[342275980,1731691838891,-150.0,9.751e-05,2]
[342275981,1731691838900,-167.43,9.761e-05,2]
[342275982,1731691838915,-150.0,9.763e-05,2]
[342275983,1731691838924,-150.0,9.77e-05,2]
[342275984,1731691838933,-150.0,9.776e-05,2]
[342275985,1731691838943,-150.0,9.777e-05,2]
[342275986,1731691838953,-58100.3225,9.779e-05,2]
[342275987,1731691838962,-510.3345,9.779e-05,2]
[342275988,1731691838972,-9881.0106,9.779e-05,2]
[342275989,1731691838980,-150.0,9.782e-05,2]
[342275990,1731691838989,-5000.0,9.794e-05,2]
[342275991,1731691838999,-383.13,9.794e-05,2]
[342275993,1731691839009,-500.0,9.795e-05,2]
[342275994,1731691839026,-1423.11,9.795e-05,2]
[342275995,1731691839038,-1782.89,9.795e-05,2]
[342275996,1731691839047,-1204.34,9.795e-05,2]
[342275997,1731691839056,-751.22,9.795e-05,2]
[342275998,1731691839065,-622.82,9.795e-05,2]
[342275999,1731691839075,-150.0,9.795e-05,2]
[342276000,1731691839085,-500.0,9.795e-05,2]
[342276001,1731691839094,-500.0,9.795e-05,2]
[342276002,1731691839103,-500.0,9.795e-05,2]
[342276003,1731691839112,-500.0,9.795e-05,2]
[342276004,1731691839121,-500.0,9.795e-05,2]
[342276005,1731691839131,-500.0,9.795e-05,2]
[342276006,1731691839140,-500.0,9.798e-05,2]
[342276007,1731691839149,-541.17,9.798e-05,2]
[342276008,1731691839158,-500.0,9.798e-05,2]
[342276009,1731691839167,-1365.15,9.798e-05,2]
[342276010,1731691839176,-1468.2,9.798e-05,2]
[342276011,1731691839186,-500.0,9.798e-05,2]
[342276012,1731691839198,-2987.83,9.798e-05,2]
[342276013,1731691839207,-500.0,9.798e-05,2]
[342276014,1731691839216,-1283.42,9.798e-05,2]
[342276015,1731691839226,-5380.85,9.798e-05,2]
[342276016,1731691839235,-1566.05,9.799e-05,2]
[342276017,1731691839244,-500.0,9.799e-05,2]
[342276018,1731691839253,-1809.59,9.799e-05,2]
[342276019,1731691839263,-500.0,9.799e-05,2]
[342276020,1731691839277,-500.0,9.799e-05,2]
[342276021,1731691839286,-500.0,9.799e-05,2]
[342276022,1731691839295,-500.0,9.799e-05,2]
[342276023,1731691839305,-3188.11,9.799e-05,2]
[342276024,1731691839314,-500.0,9.799e-05,2]
[342276025,1731691839324,-500.0,9.799e-05,2]
[342276026,1731691839333,-500.0,9.799e-05,2]
[342276027,1731691839343,-500.0,9.799e-05,2]
[342276028,1731691839352,-500.0,9.799e-05,2]
[342276029,1731691839362,-500.0,9.799e-05,2]
[342276030,1731691839371,-500.0,9.799e-05,2]
[342276031,1731691839381,-500.0,9.799e-05,2]
[342276032,1731691839390,-5089.0,9.799e-05,2]
[342276033,1731691839398,-665.59,9.799e-05,2]
[342276034,1731691839407,-1504.07,9.799e-05,2]
[342276035,1731691839417,-886.13,9.799e-05,2]
[342276036,1731691839426,-8294.19,9.799e-05,2]
[342276037,1731691839435,-500.0,9.799e-05,2]
[342276038,1731691839445,-604.04,9.799e-05,2]
[342276039,1731691839454,-1611.88,9.799e-05,2]
[342276040,1731691839464,-2236.28,9.799e-05,2]
[342276041,1731691839475,-1582.91,9.799e-05,2]
[342276042,1731691839485,-1582.69,9.799e-05,2]
[342276043,1731691839494,-500.0,9.799e-05,2]
[342276044,1731691839503,-500.0,9.799e-05,2]
[342276045,1731691839512,-9070.87,9.799e-05,2]
[342276046,1731691839521,-500.0,9.799e-05,2]
[342276047,1731691839531,-500.0,9.799e-05,2]
[342276048,1731691839541,-500.0,9.799e-05,2]
[342276049,1731691839550,-578.01,9.799e-05,2]
[342276050,1731691839560,-3778.03,9.799e-05,2]
[342276051,1731691839570,-635.79,9.799e-05,2]
[342276052,1731691839579,-500.0,9.799e-05,2]
[342276053,1731691839588,-500.0,9.799e-05,2]
[342276054,1731691839598,-189.98408238,9.799e-05,2]
[342276055,1731691839607,-500.0,9.799e-05,2]
[342276056,1731691839616,-500.0,9.799e-05,2]
[342276057,1731691839626,-548.88,9.799e-05,2]
[342276058,1731691839636,-1000.0,9.8e-05,2]
[342276059,1731691839646,-1000.0,9.8e-05,2]
[342276060,1731691839655,-1000.0,9.8e-05,2]
[342276061,1731691839665,-1000.0,9.8e-05,2]
[342276062,1731691839675,-1000.0,9.8e-05,3]
[342276063,1731691839684,-1000.0,9.8e-05,3]
[342276064,1731691840002,-10873.38300633,9.8e-05,2]
[342276065,1731691840016,-150.0,9.801e-05,2]
[342276066,1731691840027,-150.0,9.801e-05,2]
[342276067,1731691840037,-150.0,9.806e-05,2]
[342276068,1731691840046,-150.0,9.811e-05,2]
[342276069,1731691840057,-150.0,9.82e-05,2]
[342276070,1731691840066,-150.0,9.841e-05,2]
[342276071,1731691840076,-1000.0,9.851e-05,2]
[342276072,1731691840086,-150.0,9.851e-05,2]
[342276073,1731691840096,-150.0,9.853e-05,2]
[342276074,1731691840106,-150.0,9.861e-05,2]
[342276075,1731691840116,-150.0,9.863e-05,2]
[342276076,1731691840125,-150.0,9.864e-05,2]
[342276078,1731691840135,-150.0,9.866e-05,2]
[342276080,1731691840145,-300.88127697,9.873e-05,2]
[342276082,1731691840154,-500.0,9.873e-05,2]
[342276084,1731691840164,-500.0,9.873e-05,2]
[342276086,1731691840174,-500.0,9.877e-05,2]
[342276088,1731691840184,-1423.11,9.877e-05,2]
[342276090,1731691840194,-1782.89,9.877e-05,2]
[342276091,1731691840207,-1204.34,9.877e-05,2]
[342276093,1731691840217,-751.22,9.877e-05,2]
[342276095,1731691840227,-622.82,9.877e-05,2]
[342276097,1731691840238,-150.0,9.877e-05,2]
[342276100,1731691840248,-635.79,9.877e-05,2]
[342276102,1731691840258,-500.0,9.877e-05,2]
[342276104,1731691840268,-500.0,9.877e-05,2]
[342276106,1731691840283,-500.0,9.877e-05,2]
[342276107,1731691840294,-500.0,9.877e-05,2]
[342276110,1731691840304,-500.0,9.877e-05,2]
[342276112,1731691840314,-500.0,9.877e-05,2]
[342276113,1731691840325,-565.27531033,9.877e-05,2]
[342276115,1731691840335,-500.0,9.878e-05,2]
[342276117,1731691840345,-500.0,9.878e-05,2]
[342276119,1731691840355,-500.0,9.878e-05,2]
[342276121,1731691840365,-500.0,9.878e-05,2]
[342276123,1731691840375,-1107.22,9.878e-05,2]
[342276125,1731691840385,-500.0,9.878e-05,2]
[342276127,1731691840395,-500.0,9.878e-05,2]
[342276129,1731691840406,-604.67906331,9.878e-05,2]
[342276131,1731691840415,-1093.24,9.878e-05,2]
[342276133,1731691840425,-500.0,9.878e-05,2]
[342276135,1731691840435,-500.0,9.878e-05,2]
[342276137,1731691840444,-500.0,9.878e-05,2]
[342276139,1731691840454,-500.0,9.878e-05,2]
[342276141,1731691840464,-500.0,9.878e-05,2]
[342276144,1731691840474,-500.0,9.878e-05,2]
[342276146,1731691840484,-500.0,9.878e-05,2]
[342276147,1731691840494,-500.0,9.878e-05,2]
[342276149,1731691840504,-500.0,9.878e-05,2]
[342276151,1731691840514,-500.0,9.878e-05,2]
[342276154,1731691840526,-695.17,9.878e-05,2]
[342276156,1731691840536,-500.0,9.878e-05,2]
[342276158,1731691840546,-500.0,9.878e-05,2]
[342276160,1731691840557,-500.0,9.878e-05,2]
[342276162,1731691840567,-500.0,9.878e-05,2]
[342276164,1731691840578,-500.0,9.878e-05,2]
[342276166,1731691840588,-500.0,9.878e-05,2]
[342276168,1731691840598,-500.0,9.878e-05,2]
[342276170,1731691840609,-500.0,9.878e-05,2]
[342276172,1731691840619,-500.0,9.878e-05,2]
[342276174,1731691840629,-500.0,9.878e-05,2]
[342276176,1731691840640,-975.19,9.878e-05,2]
[342276178,1731691840650,-739.46,9.878e-05,2]
[342276180,1731691840660,-500.0,9.878e-05,2]
[342276182,1731691840670,-500.0,9.878e-05,2]
[342276184,1731691840681,-500.0,9.878e-05,2]
[342276186,1731691840691,-1154.76,9.878e-05,2]
[342276188,1731691840701,-500.0,9.878e-05,2]
[342276190,1731691840711,-500.0,9.878e-05,2]
[342276192,1731691840722,-500.0,9.878e-05,2]
[342276194,1731691840732,-500.0,9.878e-05,2]
[342276196,1731691840743,-500.0,9.878e-05,2]
[342276198,1731691840754,-500.0,9.878e-05,2]
[342276200,1731691840764,-500.0,9.878e-05,2]
[342276202,1731691840775,-500.0,9.878e-05,2]
[342276204,1731691840785,-500.0,9.878e-05,2]
[342276206,1731691840795,-500.0,9.878e-05,2]
[342276208,1731691840804,-2307.68,9.878e-05,2]
[342276210,1731691840813,-500.0,9.878e-05,2]
[342276212,1731691840823,-500.0,9.878e-05,2]
[342276214,1731691840832,-500.0,9.878e-05,2]
[342276216,1731691840840,-500.0,9.878e-05,2]
[342276218,1731691840849,-500.0,9.878e-05,2]
[342276220,1731691840859,-500.0,9.878e-05,2]
[342276222,1731691840869,-361.54452542,9.878e-05,2]
[342276224,1731691840878,-500.0,9.878e-05,2]
[342276226,1731691840888,-701.44,9.878e-05,2]
[342276228,1731691840897,-500.0,9.878e-05,2]
[342276230,1731691840907,-500.0,9.878e-05,2]
[342276232,1731691840917,-500.0,9.878e-05,2]
[342276233,1731691840926,-500.0,9.878e-05,2]
[342276234,1731691840936,-500.0,9.878e-05,2]
[342276235,1731691840946,-500.0,9.878e-05,2]
[342276236,1731691840956,-500.0,9.878e-05,2]
[342276238,1731691840966,-503.87,9.878e-05,2]
[342276240,1731691840975,-500.0,9.878e-05,2]
[342276242,1731691840985,-500.0,9.878e-05,2]
[342276244,1731691840995,-500.0,9.878e-05,2]
[342276246,1731691841005,-716.83,9.878e-05,2]
[342276248,1731691841014,-500.0,9.878e-05,2]
[342276250,1731691841023,-500.0,9.878e-05,2]
[342276252,1731691841035,-500.0,9.878e-05,2]
[342276254,1731691841044,-500.0,9.878e-05,2]
[342276256,1731691841053,-500.0,9.878e-05,2]
[342276258,1731691841063,-500.0,9.878e-05,2]
[342276260,1731691841072,-500.0,9.878e-05,2]
[342276262,1731691841081,-500.0,9.878e-05,2]
[342276264,1731691841091,-642.19,9.878e-05,2]
[342276266,1731691841101,-500.0,9.878e-05,2]
[342276268,1731691841110,-500.0,9.878e-05,2]
[342276270,1731691841120,-500.0,9.878e-05,2]
[342276272,1731691841129,-720.42,9.878e-05,2]
[342276274,1731691841138,-500.0,9.878e-05,2]
[342276276,1731691841148,-500.0,9.878e-05,2]
[342276278,1731691841157,-500.0,9.878e-05,2]
[342276280,1731691841166,-500.0,9.878e-05,2]
[342276283,1731691841177,-500.0,9.878e-05,2]
[342276285,1731691841187,-500.0,9.878e-05,2]
[342276287,1731691841199,-500.0,9.878e-05,2]
[342276288,1731691841208,-500.0,9.878e-05,2]
[342276290,1731691841218,-3506.49,9.878e-05,2]
[342276292,1731691841227,-500.0,9.878e-05,2]
[342276294,1731691841236,-394.87064259,9.878e-05,2]
[342276296,1731691841247,-500.0,9.878e-05,2]
[342276298,1731691841256,-500.0,9.878e-05,2]
[342276301,1731691841266,-500.0,9.878e-05,2]
[342276303,1731691841277,-928.98,9.878e-05,2]
[342276304,1731691841286,-500.0,9.878e-05,2]
[342276306,1731691841296,-500.0,9.878e-05,2]
[342276308,1731691841305,-500.0,9.878e-05,2]
[342276310,1731691841315,-500.0,9.878e-05,2]
[342276312,1731691841324,-500.0,9.878e-05,2]
[342276313,1731691841334,-500.0,9.878e-05,2]
[342276314,1731691841343,-867.52,9.878e-05,2]
[342276315,1731691841352,-500.0,9.878e-05,2]
[342276316,1731691841361,-500.0,9.878e-05,2]
[342276317,1731691841371,-500.0,9.878e-05,2]
[342276318,1731691841380,-878.96,9.878e-05,2]
[342276319,1731691841390,-500.0,9.878e-05,2]
[342276320,1731691841399,-500.0,9.878e-05,2]
[342276321,1731691841410,-500.0,9.878e-05,2]
[342276322,1731691841419,-1312.72,9.878e-05,2]
[342276323,1731691841429,-500.0,9.878e-05,2]
[342276324,1731691841438,-500.0,9.878e-05,2]
[342276325,1731691841447,-500.0,9.878e-05,2]
[342276326,1731691841456,-500.0,9.878e-05,2]
[342276327,1731691841465,-596.98,9.878e-05,2]
[342276328,1731691841474,-500.0,9.878e-05,2]
[342276329,1731691841484,-500.0,9.878e-05,2]
[342276330,1731691841493,-500.0,9.878e-05,2]
[342276331,1731691841503,-1165.01,9.878e-05,2]
[342276332,1731691841512,-500.0,9.878e-05,2]
[342276333,1731691841521,-500.0,9.878e-05,2]
[342276334,1731691841533,-500.0,9.878e-05,2]
[342276335,1731691841543,-500.0,9.878e-05,2]
[342276336,1731691841552,-477.29323799,9.878e-05,2]
[342276337,1731691841562,-500.0,9.878e-05,2]
[342276338,1731691841571,-500.0,9.878e-05,2]
[342276339,1731691841581,-500.0,9.878e-05,2]
[342276340,1731691841591,-500.0,9.878e-05,2]
[342276341,1731691841600,-500.0,9.878e-05,2]
[342276342,1731691841610,-500.0,9.878e-05,2]
[342276343,1731691841619,-500.0,9.878e-05,2]
[342276344,1731691841628,-500.0,9.878e-05,2]
[342276345,1731691841637,-500.0,9.878e-05,2]
[342276346,1731691841646,-1027.54,9.878e-05,2]
[342276347,1731691841656,-500.0,9.878e-05,2]
[342276348,1731691841665,-500.0,9.878e-05,2]
[342276349,1731691841674,-500.0,9.878e-05,2]
[342276350,1731691841683,-500.0,9.878e-05,2]
[342276351,1731691841693,-500.0,9.878e-05,2]
[342276352,1731691841702,-500.0,9.878e-05,2]
[342276353,1731691841711,-500.0,9.878e-05,2]
[342276354,1731691841721,-500.0,9.878e-05,2]
[342276355,1731691841730,-500.0,9.878e-05,2]